bitfinex/quotes_SOLUSD_20250616
["timestamp","ask_amount","ask_price","bid_price","bid_amount"]
[1750032001344,4.87466448,153.25,153.14,1.5103]
[1750032001543,23.80863648,153.24,153.14,1.5103]
[1750032001840,18.933972,153.24,153.14,1.5103]
[1750032002029,23.80863648,153.24,153.14,1.5103]
[1750032002230,18.933972,153.24,153.14,1.5103]
[1750032002422,23.80863648,153.24,153.14,1.5103]
[1750032002623,18.933972,153.24,153.14,1.5103]
[1750032002832,23.80863648,153.24,153.14,1.5103]
[1750032003032,18.933972,153.24,153.14,1.5103]
[1750032003231,23.80863648,153.24,153.14,1.5103]
[1750032003591,18.933972,153.24,153.14,1.5103]
[1750032003727,5.15898762,153.24,153.14,1.5103]
[1750032003933,0.28432314,153.24,153.14,1.5103]
[1750032005157,0.28432314,153.24,153.16,1.5162]
[1750032005450,4.87124659,153.25,153.16,1.5162]
[1750032005651,4.87124659,153.27,153.16,1.5162]
[1750032005964,18.933972,153.24,153.12,1.5512]
[1750032006266,18.933972,153.22,153.12,1.5512]
[1750032006432,23.80521859,153.22,153.12,1.5512]
[1750032006629,18.933972,153.22,153.13,6.530399]
[1750032006820,23.80521859,153.22,153.13,6.530399]
[1750032008054,18.933972,153.22,153.13,6.530399]
[1750032008229,10.89844659,153.23,153.13,6.530399]
[1750032008554,6.0272,153.23,153.13,6.530399]
[1750032008728,10.89844659,153.23,153.13,6.530399]
[1750032009137,4.87124659,153.22,153.13,6.530399]
[1750032009941,4.87124659,153.22,153.13,22.85639651]
[1750032010151,10.89844659,153.23,153.13,22.85639651]
[1750032010335,4.87124659,153.22,153.13,6.530399]
[1750032011072,10.89844659,153.23,153.13,22.85639651]
[1750032011260,4.87124659,153.22,153.13,22.85639651]
[1750032013660,5.15556973,153.21,153.13,6.530399]
[1750032014252,4.87124659,153.2,153.13,6.530399]
[1750032014436,4.87124659,153.19,153.13,6.530399]
[1750032014636,0.28432314,153.21,153.13,6.530399]
[1750032014637,4.87124659,153.2,153.13,6.530399]
[1750032014954,4.87124659,153.19,153.13,6.530399]
[1750032015254,4.87124659,153.2,153.13,6.530399]
[1750032015554,4.87124659,153.19,153.13,6.530399]
[1750032015758,4.87124659,153.2,153.13,6.530399]
[1750032016066,4.87124659,153.19,153.12,8.08190552]
[1750032016265,4.87124659,153.2,153.12,8.08190552]
[1750032016437,4.87124659,153.19,153.12,8.08190552]
[1750032016762,4.87124659,153.2,153.12,8.08190552]
[1750032017068,4.87124659,153.22,153.12,8.08190552]
[1750032017245,6.31152314,153.23,153.12,8.08190552]
[1750032017246,4.87124659,153.21,153.12,8.08190552]
[1750032017433,4.87124659,153.22,153.12,8.08190552]
[1750032017760,4.87124659,153.21,153.12,8.08190552]
[1750032017944,4.87124659,153.2,153.12,8.08190552]
[1750032018255,4.87124659,153.22,153.12,8.08190552]
[1750032018459,4.87124659,153.21,153.12,8.08190552]
[1750032018642,4.87124659,153.2,153.12,8.08190552]
[1750032018846,4.87124659,153.22,153.12,8.08190552]
[1750032019150,4.87124659,153.21,153.12,8.08190552]
[1750032019354,4.87124659,153.2,153.13,18.64964886]
[1750032019545,4.87124659,153.22,153.13,18.64964886]
[1750032019746,4.87124659,153.21,153.13,18.64964886]
[1750032020045,5.15556973,153.2,153.12,8.08190552]
[1750032020249,10.57124659,153.19,153.08,49.05265354]
[1750032020556,10.57124659,153.19,153.09,6.53205773]
[1750032020557,5.15556973,153.18,153.09,6.53205773]
[1750032020756,4.87124659,153.17,153.09,6.53205773]
[1750032020943,4.87124659,153.16,153.09,6.53205773]
[1750032021143,4.87124659,153.17,153.09,6.53205773]
[1750032021337,4.87124659,153.16,153.09,6.53205773]
[1750032021536,0.28432314,153.18,153.09,6.53205773]
[1750032021737,4.88576882,153.17,153.09,6.53205773]
[1750032021948,4.88576882,153.16,153.09,6.53205773]
[1750032022269,4.88589258,153.15,153.09,6.53205773]
[1750032022465,4.88589258,153.17,153.09,6.53205773]
[1750032022648,4.88589258,153.16,153.09,6.53205773]
[1750032022846,4.88589258,153.18,153.09,6.53205773]
[1750032023153,4.88589258,153.17,153.09,6.53205773]
[1750032023347,5.7,153.19,153.09,6.53205773]
[1750032023585,5.17068209,153.18,153.09,6.53205773]
[1750032023773,4.88635895,153.17,153.09,6.53205773]
[1750032024077,4.88635895,153.16,153.09,6.53205773]
[1750032024248,4.88635895,153.17,153.09,6.53205773]
[1750032024451,4.88635895,153.16,153.09,6.53205773]
[1750032024673,0.28432314,153.16,153.08,55.58503396]
[1750032024848,5.17068209,153.16,153.08,55.58503396]
[1750032025046,4.88635895,153.17,153.08,55.58503396]
[1750032025273,4.88635895,153.16,153.08,55.58503396]
[1750032025579,0.28432314,153.17,153.08,55.58503396]
[1750032025767,4.88635895,153.16,153.08,55.58503396]
[1750032026361,4.88635895,153.15,153.09,18.64964886]
[1750032026566,4.88635895,153.18,153.1,6.53167864]
[1750032026754,4.88635895,153.17,153.1,22.86087524]
[1750032027069,4.88635895,153.2,153.1,22.86087524]
[1750032027264,4.88635895,153.19,153.11,18.64964886]
[1750032027569,4.88635895,153.18,153.11,18.64964886]
[1750032027868,11.79333061,153.21,153.11,18.64964886]
[1750032027869,4.88635895,153.2,153.11,18.64964886]
[1750032028055,4.88635895,153.19,153.11,18.64964886]
[1750032028259,4.88635895,153.18,153.11,18.64964886]
[1750032028462,4.88635895,153.17,153.12,6.53082549]
[1750032028765,4.88635895,153.2,153.12,6.53082549]
[1750032028972,4.88635895,153.19,153.12,6.53082549]
[1750032029167,4.88635895,153.18,153.12,6.53082549]
[1750032029350,4.88635895,153.17,153.08,67.7023024]
[1750032029555,4.88635895,153.16,153.09,25.18175415]
[1750032029756,6.09333061,153.2,153.09,25.18175415]
[1750032029757,4.88635895,153.19,153.09,25.18175415]
[1750032029959,4.88635895,153.18,153.09,25.18175415]
[1750032030159,6.09333061,153.2,153.09,25.18175415]
[1750032030160,4.88635895,153.17,153.09,41.51201739]
[1750032030366,4.88635895,153.19,153.09,41.51201739]
[1750032030551,4.88635895,153.18,153.09,41.51201739]
[1750032030751,4.88635895,153.2,153.1,0.28432314]
[1750032031057,4.88635895,153.2,153.13,18.64964886]
[1750032031258,4.88635895,153.24,153.13,18.64964886]
[1750032031480,4.88635895,153.23,153.13,18.64964886]
[1750032031781,4.88635895,153.22,153.13,18.64964886]
[1750032032077,4.88635895,153.24,153.13,18.64964886]
[1750032032282,4.88635895,153.23,153.13,18.64964886]
[1750032032481,4.88635895,153.22,153.14,6.52997257]
[1750032032773,4.88635895,153.21,153.13,6.53028545]
[1750032032981,4.88635895,153.2,153.13,6.53028545]
[1750032033162,0.14216157,153.22,153.13,6.53028545]
[1750032033163,4.88635895,153.21,153.13,6.53028545]
[1750032033364,5.17068209,153.2,153.12,13.12381335]
[1750032033568,4.88635895,153.19,153.12,13.12381335]
[1750032034748,4.88635895,153.18,153.12,6.53071335]
[1750032034948,0.28432314,153.18,153.11,1.5421]
[1750032035149,4.88635895,153.17,153.09,6.53200684]
[1750032035398,4.88635895,153.16,153.09,6.53200684]
[1750032035553,4.88635895,153.17,153.09,6.53200684]
[1750032035760,4.88635895,153.16,153.09,6.53200684]
[1750032035981,4.88635895,153.17,153.09,6.53200684]
[1750032036279,4.88635895,153.16,153.09,6.53200684]
[1750032036453,4.88635895,153.17,153.09,6.53200684]
[1750032036780,4.88635895,153.16,153.09,6.53200684]
[1750032036964,4.88635895,153.17,153.09,6.53200684]
[1750032037277,4.88635895,153.16,153.09,6.53200684]
[1750032037482,4.88635895,153.17,153.09,6.53200684]
[1750032037680,4.88635895,153.16,153.09,6.53200684]
[1750032037882,4.88635895,153.17,153.09,6.53200684]
[1750032038056,4.88635895,153.16,153.09,6.53200684]
[1750032038257,4.88635895,153.17,153.09,6.53200684]
[1750032038482,4.88635895,153.16,153.09,6.53200684]
[1750032038780,4.88635895,153.15,153.08,60.2041393]
[1750032040066,5.1646594,153.15,153.08,60.2041393]
[1750032040882,5.1646594,153.15,153.08,47.50995354]
[1750032041182,4.88033626,153.14,153.08,47.50995354]
[1750032041397,5.1646594,153.15,153.08,47.50995354]
[1750032041960,0.28432314,153.15,153.08,47.50995354]
[1750032042154,5.1646594,153.15,153.08,47.50995354]
[1750032042563,0.28432314,153.13,153.08,47.50995354]
[1750032043180,5.1646594,153.13,153.08,47.50995354]
[1750032043388,0.28432314,153.13,153.08,47.50995354]
[1750032044082,4.88033626,153.15,153.08,54.04245355]
[1750032044264,5.74,153.16,153.11,25.04924886]
[1750032044776,5.74,153.16,153.11,6.3996]
[1750032044956,5.74,153.16,153.1,1.6452]
[1750032045578,5.74,153.16,153.11,26.0]
[1750032045956,5.74,153.16,153.12,26.0]
[1750032046174,0.28432314,153.15,153.08,47.50995354]
[1750032046374,0.28432314,153.15,153.09,26.0]
[1750032046573,0.28432314,153.13,153.08,47.50995354]
[1750032047082,4.88033626,153.15,153.08,47.50995354]
[1750032047285,5.1646594,153.15,153.08,47.50995354]
[1750032049474,5.1646594,153.15,153.08,54.04246617]
[1750032049865,0.28432314,153.15,153.08,54.04246617]
[1750032050385,5.1646594,153.15,153.08,54.04246617]
[1750032050583,0.28432314,153.15,153.08,54.04246617]
[1750032050973,0.28432314,153.15,153.08,47.50995354]
[1750032051280,23.81430826,153.15,153.08,47.50995354]
[1750032051475,4.88033626,153.14,153.08,47.50995354]
[1750032051993,0.28432314,153.12,153.08,47.50995354]
[1750032054191,18.933972,153.14,153.08,47.50995354]
[1750032054367,23.81430826,153.14,153.08,47.50995354]
[1750032054568,18.933972,153.14,153.08,47.50995354]
[1750032054779,23.81430826,153.14,153.08,47.50995354]
[1750032054973,18.933972,153.14,153.08,47.50995354]
[1750032055172,0.28432314,153.12,153.08,47.50995354]
[1750032058276,0.28432314,153.12,153.06,1.6452]
[1750032058605,0.28432314,153.14,153.06,8.17837102]
[1750032058895,0.14216157,153.14,153.06,8.17837102]
[1750032059600,0.28432314,153.14,153.06,8.17837102]
[1750032062728,10.62033626,153.16,153.06,7.17837102]
[1750032063019,0.28432314,153.15,153.06,7.17837102]
[1750032063637,5.1646594,153.15,153.06,7.17837102]
[1750032064218,0.28432314,153.15,153.06,7.17837102]
[1750032064422,5.1646594,153.15,153.06,7.17837102]
[1750032065118,1.5035,153.14,153.07,26.0]
[1750032065420,0.28432314,153.12,153.04,121.73409618]
[1750032065597,0.28432314,153.12,153.04,32.53409618]
[1750032072010,18.933972,153.12,153.04,26.0]
[1750032072204,23.81430826,153.12,153.04,26.0]
[1750032072429,18.933972,153.12,153.04,26.0]
[1750032072600,50.53430826,153.12,153.03,26.0]
[1750032072802,4.88033626,153.11,153.03,26.0]
[1750032074516,4.88033626,153.11,153.03,32.53457471]
[1750032075404,4.88033626,153.11,153.03,26.0]
[1750032077525,0.28432314,153.09,153.03,26.0]
[1750032077714,0.28432314,153.07,153.0,8.16422604]
[1750032078029,10.9046594,153.07,153.0,8.16422604]
[1750032078219,6.02432314,153.07,153.0,8.16422604]
[1750032078416,10.9046594,153.07,152.99,32.0354]
[1750032078661,6.02432314,153.07,152.99,32.0354]
[1750032078818,10.9046594,153.07,152.99,38.57167805]
[1750032079026,10.9046594,153.07,152.96,78.99199114]
[1750032079027,20.527272,153.02,152.96,42.48695354]
[1750032079209,18.64964886,152.96,152.84,22.65227111]
[1750032079410,44.64964886,152.94,152.84,22.65227111]
[1750032079637,0.28432314,152.93,152.84,22.65227111]
[1750032079905,0.28432314,152.88,152.84,16.00317111]
[1750032080105,18.933972,152.88,152.84,16.00317111]
[1750032080550,4.89047422,152.93,152.82,26.0]
[1750032080708,4.89933236,152.92,152.83,18.64964886]
[1750032080908,0.28432314,152.94,152.83,18.64964886]
[1750032081216,4.89103232,152.93,152.82,18.79181043]
[1750032081521,0.14216157,152.97,152.88,26.0]
[1750032081724,4.89830322,152.96,152.88,26.0]
[1750032081922,5.17535546,152.98,152.88,26.0]
[1750032082109,18.64964886,152.97,152.88,26.0]
[1750032082311,0.28432314,152.92,152.81,18.64964886]
[1750032082523,4.89926533,152.91,152.84,26.0]
[1750032082733,0.28432314,152.94,152.84,26.0]
[1750032083254,4.8989436,152.93,152.84,26.0]
[1750032083421,0.28432314,152.94,152.84,26.0]
[1750032083741,4.91174164,152.93,152.84,26.0]
[1750032083954,0.28432314,152.94,152.84,26.0]
[1750032084157,26.0,152.87,152.68,6.54964631]
[1750032084318,0.28432314,152.85,152.68,6.54964631]
[1750032084517,0.28432314,152.8,152.68,22.9237621]
[1750032084747,0.28432314,152.76,152.66,6.55011443]
[1750032085252,4.91757386,152.75,152.69,26.0]
[1750032085433,4.91757386,152.74,152.69,26.0]
[1750032085752,0.28432314,152.76,152.69,26.0]
[1750032085753,4.91757699,152.73,152.69,26.0]
[1750032085928,4.91764621,152.72,152.66,6.55011443]
[1750032086129,0.28432314,152.76,152.69,26.0]
[1750032086444,4.91755232,152.75,152.69,26.0]
[1750032086643,4.91747829,152.74,152.69,26.0]
[1750032086840,4.91679983,152.73,152.69,6.54911017]
[1750032087053,4.91679983,152.72,152.7,26.0]
[1750032087366,0.28432314,152.8,152.7,26.0]
[1750032087946,4.91605977,152.79,152.7,26.0]
[1750032088121,4.91603726,152.78,152.71,18.64964886]
[1750032088318,9.83084406,152.77,152.71,18.64964886]
[1750032088521,4.91592389,152.76,152.72,6.54793085]
[1750032088744,9.83184804,152.75,152.72,6.54793085]
[1750032088953,4.91592402,152.74,152.72,6.54793085]
[1750032089154,18.933972,152.78,152.71,6.54831904]
[1750032089324,0.28432314,152.76,152.71,6.54831904]
[1750032089518,9.83392328,152.75,152.68,6.54964631]
[1750032089727,0.28432314,152.76,152.68,48.9237621]
[1750032089728,9.83399906,152.74,152.68,48.9237621]
[1750032089945,0.28432314,152.76,152.68,48.9237621]
[1750032089946,0.28432314,152.8,152.72,26.0]
[1750032090146,9.83257896,152.79,152.72,26.0]
[1750032090347,0.28432314,152.8,152.72,26.0]
[1750032090553,9.83241659,152.79,152.73,6.54750212]
[1750032090737,9.83236869,152.78,152.73,6.54750212]
[1750032090926,4.91604788,152.77,152.73,6.54750212]
[1750032091129,9.83244322,152.76,152.73,6.54750212]
[1750032091442,0.28432314,152.8,152.72,26.0]
[1750032091753,9.8328511,152.79,152.72,32.54792386]
[1750032092049,0.28432314,152.81,152.72,48.91775099]
[1750032092351,4.91595666,152.8,152.72,48.91775099]
[1750032092648,9.83192976,152.79,152.72,48.91775099]
[1750032092854,9.83198032,152.78,152.72,48.91775099]
[1750032093159,0.28432314,152.81,152.72,48.91775099]
[1750032093160,9.83174648,152.77,152.72,32.54792386]
[1750032093365,4.91615243,152.76,152.72,32.54792386]
[1750032093533,9.83251952,152.75,152.72,32.54792386]
[1750032093865,4.91636709,152.74,152.72,32.54792386]
[1750032094025,18.933972,152.81,152.72,32.54792386]
[1750032094363,0.28432314,152.79,152.72,32.54792386]
[1750032094658,4.91628223,152.78,152.72,32.54792386]
[1750032094860,4.91643341,152.77,152.72,32.54792386]
[1750032095063,4.91643474,152.76,152.72,32.54792386]
[1750032095356,0.28432314,152.79,152.72,32.54792386]
[1750032095531,0.28432314,152.79,152.72,26.0]
[1750032095853,4.91687245,152.78,152.72,32.5479154]
[1750032096027,9.83374623,152.77,152.72,32.5479154]
[1750032096227,4.91688432,152.76,152.72,32.5479154]
[1750032096439,0.28432314,152.8,152.72,32.5479154]
[1750032096635,0.28432314,152.78,152.72,32.5479154]
[1750032097151,4.91684881,152.77,152.72,32.5479154]
[1750032097371,4.91684881,152.76,152.72,32.5479154]
[1750032097572,9.83233384,152.75,152.72,32.5479154]
[1750032097778,4.91595191,152.74,152.72,32.5479154]
[1750032097950,0.28432314,152.81,152.72,48.91774253]
[1750032098146,9.83184049,152.8,152.72,48.91774253]
[1750032098360,9.83184183,152.79,152.72,48.91774253]
[1750032098558,4.91583548,152.78,152.72,32.5479154]
[1750032098771,9.83189169,152.77,152.72,32.5479154]
[1750032098958,9.83351364,152.76,152.72,32.5479154]
[1750032099162,18.933972,152.81,152.72,32.5479154]
[1750032099356,0.28432314,152.79,152.72,32.5479154]
[1750032099565,9.83356346,152.78,152.72,32.5479154]
[1750032099871,9.83356614,152.77,152.72,32.5479154]
[1750032100075,9.83346891,152.76,152.72,32.5479154]
[1750032100248,9.83337166,152.75,152.72,32.5479154]
[1750032100452,9.83352914,152.74,152.72,32.5479154]
[1750032100761,9.8336892,152.73,152.72,32.5479154]
[1750032100955,9.83369322,152.73,152.72,32.5479154]
[1750032101361,9.83364556,152.73,152.72,32.5479154]
[1750032101564,9.8335979,152.73,152.72,32.5479154]
[1750032101779,9.83294852,152.73,152.72,32.5479154]
[1750032101981,4.91646506,152.73,152.72,32.5479154]
[1750032102280,0.28432314,152.79,152.72,32.5479154]
[1750032103289,0.28432314,152.8,152.72,32.5479154]
[1750032103672,0.28432314,152.8,152.72,48.91774253]
[1750032104758,0.28432314,152.8,152.72,32.5479154]
[1750032104951,26.28432314,152.8,152.72,26.0]
[1750032105156,26.28432314,152.8,152.71,26.0]
[1750032105554,18.64964886,152.79,152.71,26.0]
[1750032107368,0.28432314,152.78,152.66,6.55050438]
[1750032107581,0.28432314,152.78,152.69,26.0]
[1750032108885,1.89652314,152.78,152.66,6.55050438]
[1750032109062,18.64964886,152.77,152.66,6.55050438]
[1750032109263,18.64964886,152.77,152.69,26.0]
[1750032110002,0.28432314,152.77,152.69,26.0]
[1750032110160,0.14216157,152.77,152.69,26.0]
[1750032110500,0.28432314,152.77,152.69,26.0]
[1750032111066,6.06,152.8,152.74,26.0]
[1750032112770,6.06,152.8,152.76,26.0]
[1750032113206,6.06,152.8,152.79,26.0]
[1750032114192,6.06,152.8,152.78,6.5452953]
[1750032114383,6.06,152.8,152.78,32.5452953]
[1750032115105,6.06,152.8,152.78,26.0]
[1750032115396,6.06,152.8,152.78,32.54532087]
[1750032116802,9.61523937,152.85,152.78,32.54532087]
[1750032117392,9.61523937,152.85,152.81,26.0]
[1750032118204,9.61523937,152.85,152.79,44.64964886]
[1750032118391,9.61523937,152.85,152.83,26.0]
[1750032120710,9.61523937,152.85,152.79,18.64964886]
[1750032120711,9.61523937,152.85,152.79,26.0]
[1750032122487,9.61523937,152.85,152.79,32.54475482]
[1750032122695,0.28432314,152.81,152.69,6.0406]
[1750032123098,0.28432314,152.81,152.72,26.0]
[1750032123488,23.50167948,152.8,152.72,26.0]
[1750032123807,4.85203062,152.79,152.73,26.0]
[1750032123989,5.97859053,152.82,152.73,26.0]
[1750032123990,0.28432314,152.81,152.73,26.0]
[1750032124188,5.13635376,152.81,152.73,26.0]
[1750032124586,0.28432314,152.81,152.73,32.5471157]
[1750032124881,9.61523937,152.85,152.76,18.64964886]
[1750032125089,9.61523937,152.85,152.79,26.0]
[1750032126788,9.61523937,152.85,152.8,6.54450261]
[1750032127104,9.61523937,152.85,152.79,32.54481476]
[1750032127284,14.482599,152.85,152.79,32.54481476]
[1750032127683,9.61523937,152.85,152.79,32.54481476]
[1750032127911,4.86735963,152.84,152.79,32.54481476]
[1750032128411,9.61523937,152.85,152.81,26.0]
[1750032128720,4.86735963,152.84,152.81,26.0]
[1750032128913,4.86735963,152.84,152.78,6.54522124]
[1750032128914,4.86735963,152.83,152.79,26.0]
[1750032129087,4.86735963,152.84,152.79,26.0]
[1750032131513,0.28432314,152.84,152.79,26.0]
[1750032131901,0.28432314,152.84,152.72,25.19757971]
[1750032131902,4.86735963,152.83,152.72,25.19757971]
[1750032132114,0.28432314,152.81,152.75,26.0]
[1750032132914,4.88148447,152.82,152.75,26.0]
[1750032133093,4.88148447,152.84,152.79,26.0]
[1750032133509,9.61523937,152.85,152.79,26.0]
[1750032133820,9.61523937,152.85,152.8,6.54450261]
[1750032134890,9.61523937,152.85,152.79,32.54478025]
[1750032136504,9.61523937,152.85,152.79,26.0]
[1750032136710,18.933972,152.84,152.7,32.7418735]
[1750032136917,18.933972,152.82,152.71,14.54343709]
[1750032137116,0.28432314,152.8,152.71,14.54343709]
[1750032137425,0.28432314,152.8,152.74,26.0]
[1750032137728,0.28432314,152.8,152.71,14.54343709]
[1750032138035,0.28432314,152.8,152.74,26.0]
[1750032138519,0.28432314,152.8,152.75,26.0]
[1750032139024,0.28432314,152.8,152.76,26.0]
[1750032139599,0.28432314,152.8,152.72,32.54778775]
[1750032140095,6.12,152.81,152.72,32.54778775]
[1750032142022,6.12,152.81,152.76,26.0]
[1750032142721,6.12,152.81,152.76,32.54595276]
[1750032147334,6.12,152.81,152.8,26.0]
[1750032147837,9.61523937,152.85,152.8,26.0]
[1750032149137,9.61523937,152.85,152.8,32.54434787]
[1750032149500,6.08,152.88,152.8,32.54434787]
[1750032150524,6.08,152.88,152.84,26.0]
[1750032151840,6.08,152.88,152.84,32.54274382]
[1750032153138,9.25537408,152.92,152.84,32.54274382]
[1750032154112,9.25537408,152.92,152.88,26.0]
[1750032156226,9.25537408,152.92,152.86,26.0]
[1750032157423,9.25537408,152.92,152.85,32.54207726]
[1750032158049,9.25537408,152.92,152.86,18.64964886]
[1750032158641,9.25537408,152.92,152.86,51.19121067]
[1750032159714,9.25537408,152.92,152.86,32.54156181]
[1750032159914,0.14216157,152.91,152.82,7.678]
[1750032160135,0.14216157,152.91,152.82,6.1597]
[1750032160444,0.14216157,152.91,152.85,26.0]
[1750032160743,8.33333333,152.87,152.85,26.0]
[1750032161936,8.33333333,152.87,152.82,12.70329813]
[1750032161937,8.33333333,152.87,152.86,26.0]
[1750032163018,8.33333333,152.87,152.81,18.64964886]
[1750032163219,8.33333333,152.87,152.83,26.0]
[1750032163437,8.33333333,152.87,152.82,6.54352468]
[1750032163927,8.33333333,152.87,152.83,26.0]
[1750032164530,8.33333333,152.87,152.84,26.0]
[1750032165571,8.33333333,152.87,152.82,26.0]
[1750032165776,0.14216157,152.85,152.75,18.64964886]
[1750032166065,0.14216157,152.84,152.72,6.54793085]
[1750032166297,0.14216157,152.82,152.7,42.49328708]
[1750032166454,5.02527278,152.82,152.7,49.04197928]
[1750032166639,0.28432314,152.82,152.73,26.0]
[1750032166837,0.28432314,152.82,152.74,26.0]
[1750032167241,0.28432314,152.82,152.71,18.64964886]
[1750032167452,0.28432314,152.82,152.74,26.0]
[1750032168771,18.933972,152.82,152.75,26.0]
[1750032168946,18.933972,152.82,152.71,6.54835518]
[1750032169154,0.28432314,152.82,152.74,26.0]
[1750032170177,0.28432314,152.82,152.71,6.54830523]
[1750032170178,26.0,152.81,152.71,32.54830523]
[1750032170970,18.933972,152.8,152.71,26.0]
[1750032171740,18.933972,152.8,152.71,32.54827443]
[1750032172168,18.933972,152.8,152.71,26.0]
[1750032172671,18.933972,152.8,152.71,32.54835509]
[1750032173274,0.28432314,152.78,152.7,6.54867839]
[1750032173447,6.08,152.77,152.7,6.54867839]
[1750032173653,0.28432314,152.76,152.69,26.0]
[1750032174049,0.28432314,152.76,152.69,32.5490908]
[1750032175155,0.28432314,152.76,152.69,26.0]
[1750032176142,0.28432314,152.76,152.69,32.54919731]
[1750032176749,0.28432314,152.76,152.69,26.0]
[1750032178247,0.28432314,152.76,152.69,32.54915478]
[1750032178447,6.08,152.77,152.69,32.54915478]
[1750032180662,6.08,152.77,152.73,26.0]
[1750032180868,6.02,152.84,152.77,26.0]
[1750032181101,6.02,152.84,152.75,26.0]
[1750032181306,6.02,152.84,152.73,34.1453]
[1750032181481,26.0,152.8,152.69,14.69445478]
[1750032181799,0.28432314,152.78,152.69,60.36465178]
[1750032181957,0.28432314,152.78,152.69,40.69445478]
[1750032182485,0.28432314,152.78,152.69,32.5414]
[1750032182486,18.933972,152.78,152.69,32.5414]
[1750032186274,0.28432314,152.78,152.69,32.5414]
[1750032186591,18.933972,152.79,152.69,39.09048733]
[1750032187497,18.933972,152.79,152.69,32.5414]
[1750032188388,0.28432314,152.76,152.69,26.0]
[1750032189383,0.28432314,152.76,152.69,32.54911225]
[1750032189689,0.28432314,152.76,152.69,26.0]
[1750032191991,0.28432314,152.76,152.65,8.2163]
[1750032191992,0.28432314,152.74,152.65,8.2163]
[1750032192186,0.28432314,152.74,152.65,40.76720051]
[1750032192387,6.02,152.75,152.66,18.64964886]
[1750032192693,0.28432314,152.76,152.69,26.0]
[1750032192991,18.64964886,152.78,152.69,26.0]
[1750032192992,0.14216157,152.77,152.69,26.0]
[1750032193494,0.14216157,152.77,152.69,32.54907455]
[1750032193668,0.28432314,152.77,152.69,32.54907455]
[1750032194375,6.02,152.78,152.69,32.54907455]
[1750032194568,6.02,152.78,152.7,18.64964886]
[1750032194782,6.02,152.78,152.74,26.0]
[1750032194983,6.02,152.78,152.75,6.54664484]
[1750032196472,6.02,152.78,152.74,32.54696761]
[1750032198880,6.02,152.78,152.75,18.64964886]
[1750032199089,0.28432314,152.84,152.75,18.64964886]
[1750032199292,33.5642,152.85,152.75,18.64964886]
[1750032199804,6.02,152.85,152.79,6.54493095]
[1750032199994,6.02,152.85,152.78,32.54521853]
[1750032200783,6.02,152.85,152.78,26.0]
[1750032201798,6.02,152.85,152.76,26.0]
[1750032202098,0.28432314,152.84,152.76,26.0]
[1750032203993,26.0,152.81,152.73,18.64964886]
[1750032205208,26.0,152.81,152.73,25.1967409]
[1750032205402,5.14166744,152.83,152.73,25.1967409]
[1750032208082,0.28432314,152.83,152.76,26.0]
[1750032209703,0.28432314,152.83,152.73,18.64964886]
[1750032210009,0.28432314,152.83,152.74,26.0]
[1750032211204,30.8573443,152.84,152.76,26.0]
[1750032211410,26.0,152.84,152.76,32.54612029]
[1750032211712,26.0,152.84,152.76,26.0]
[1750032211903,26.0,152.84,152.76,32.54618416]
[1750032213507,26.0,152.84,152.76,26.0]
[1750032214224,10.8773443,152.85,152.77,18.64964886]
[1750032214428,6.02,152.85,152.77,18.64964886]
[1750032214791,8.33333333,152.83,152.77,26.69944886]
[1750032215290,8.33333333,152.83,152.77,33.24493539]
[1750032224115,8.33333333,152.83,152.77,6.5491]
[1750032224321,8.33333333,152.83,152.74,89.2]
[1750032224322,8.33333333,152.83,152.74,18.64964886]
[1750032224525,8.33333333,152.83,152.74,26.0]
[1750032224526,0.28432314,152.82,152.74,26.0]
[1750032224734,9.98923333,152.83,152.74,26.0]
[1750032224907,8.33333333,152.83,152.78,26.0]
[1750032225115,8.33333333,152.83,152.79,18.64964886]
[1750032225830,8.33333333,152.83,152.8,6.54450261]
[1750032236237,8.33333333,152.83,152.79,6.54481945]
[1750032240253,8.33333333,152.83,152.78,26.0]
[1750032240454,8.33333333,152.83,152.79,18.64964886]
[1750032241477,8.33333333,152.83,152.78,32.54529646]
[1750032241969,1.5778,152.81,152.71,8.333333]
[1750032242143,1.5778,152.81,152.69,7.8554]
[1750032242144,0.28432314,152.8,152.7,6.54878847]
[1750032242343,1.5778,152.81,152.74,18.64964886]
[1750032242761,1.5778,152.81,152.73,6.54750212]
[1750032243464,0.28432314,152.8,152.74,26.0]
[1750032243664,0.28432314,152.8,152.7,18.64964886]
[1750032243839,5.9,152.79,152.71,26.0]
[1750032244549,5.9,152.79,152.71,32.54815047]